bitfinex/quotes_ETHUSD_20250507
["timestamp","ask_amount","ask_price","bid_price","bid_amount"]
[1746607580398,5.41832357,1845.6,1845.3,5.91916323]
[1746607580702,5.41832357,1845.6,1845.3,0.55418471]
[1746607581064,6.35133627,1845.7,1845.3,11.39217139]
[1746607581265,5.41815952,1845.7,1845.3,11.33798668]
[1746607582279,5.41815952,1845.7,1845.4,5.41886963]
[1746607583517,5.41815952,1845.7,1845.4,5.41885143]
[1746607583803,5.41815952,1845.7,1845.3,5.91898612]
[1746607584099,5.41815952,1845.7,1845.3,5.97317083]
[1746607584595,0.7586,1845.6,1845.3,0.55418471]
[1746607584801,3.11504265,1845.8,1845.3,0.5]
[1746607584802,7.68676683,1845.4,1845.3,0.5]
[1746607585097,7.68676683,1845.4,1845.0,5.41982275]
[1746607585098,8.44536683,1845.4,1845.0,5.41982275]
[1746607585305,5.41918497,1845.3,1844.9,10.90036161]
[1746607585497,7.68742281,1845.2,1844.8,14.62438805]
[1746607585803,5.41989816,1845.1,1844.8,14.62438805]
[1746607586298,8.48274524,1845.2,1844.8,14.62438805]
[1746607586595,8.48274524,1845.2,1844.8,14.62429451]
[1746607586788,5.41989057,1845.1,1844.8,9.20382428]
[1746607587101,5.41989057,1845.1,1844.8,14.62443819]
[1746607587296,9.33101976,1845.2,1844.8,14.62443819]
[1746607587602,5.4198027,1845.1,1844.8,9.06343819]
[1746607587800,9.33101976,1845.2,1844.8,14.48371258]
[1746607588120,9.33101976,1845.2,1844.8,9.06325528]
[1746607588263,9.33101976,1845.2,1844.8,5.420431]
[1746607588463,5.41988857,1845.1,1844.7,10.90150245]
[1746607588711,9.33099835,1845.2,1844.8,5.42053459]
[1746607589073,0.93309983,1845.1,1844.8,23.42053459]
[1746607589397,6.35286292,1845.1,1844.8,23.42053459]
[1746607589602,0.93309983,1845.1,1844.8,23.42053459]
[1746607589966,0.93309983,1845.1,1844.8,28.84100877]
[1746607590198,8.48275567,1845.2,1844.8,23.42047418]
[1746607590409,5.41977648,1845.1,1844.8,18.0]
[1746607590599,8.48270649,1845.2,1844.8,18.0]
[1746607591407,13.90240077,1845.2,1844.8,23.42052995]
[1746607591578,5.41976062,1845.1,1844.8,23.42052995]
[1746607592202,9.87294657,1845.2,1844.8,23.42052995]
[1746607592816,9.87294657,1845.2,1844.8,28.84101243]
[1746607593300,5.41979067,1845.1,1844.8,23.42048248]
[1746607594284,9.07773287,1845.2,1844.9,5.4203285]
[1746607594523,5.41936608,1845.3,1845.0,0.06]
[1746607594723,5.41907787,1845.4,1845.0,5.47996144]
[1746607594947,10.8382228,1845.4,1845.0,5.47996144]
[1746607595661,5.41924257,1845.3,1845.0,5.47996144]
[1746607596166,5.41907787,1845.4,1845.0,10.89980866]
[1746607596367,6.77035868,1845.4,1845.0,5.47984722]
[1746607597462,3.0,1845.5,1845.1,5.41952033]
[1746607597667,8.41876019,1845.5,1845.1,5.41952033]
[1746607598671,8.41876019,1845.5,1845.0,0.11419389]
[1746607598847,8.41876019,1845.5,1845.1,5.41951063]
[1746607600167,8.41876019,1845.5,1845.1,10.83910161]
[1746607600373,10.43609963,1845.5,1845.2,5.41945308]
[1746607600756,10.43609963,1845.5,1845.2,5.47945308]
[1746607600959,2.01733944,1845.5,1845.3,5.41891738]
[1746607601142,3.0,1845.6,1845.3,5.41891738]
[1746607601554,5.41829911,1845.6,1845.3,5.41891738]
[1746607601876,7.68598401,1845.7,1845.3,5.41891738]
[1746607602173,7.68598401,1845.7,1845.3,10.83791595]
[1746607602676,7.68598401,1845.7,1845.4,5.41885534]
[1746607602970,0.7685984,1845.6,1845.3,10.83788847]
[1746607603172,7.68598401,1845.7,1845.3,10.83787586]
[1746607603379,7.68598401,1845.7,1845.3,5.41891738]
[1746607603674,8.09133662,1845.7,1845.3,5.41891738]
[1746607603879,8.09133662,1845.7,1845.4,5.41882178]
[1746607604374,8.09133662,1845.7,1845.3,5.41897204]
[1746607604568,10.88921224,1845.7,1845.3,5.41897204]
[1746607605071,16.30746399,1845.7,1845.3,5.41897204]
[1746607605379,10.88921224,1845.7,1845.3,5.41897204]
[1746607605579,10.88921224,1845.7,1845.3,5.41917303]
[1746607606282,10.88921224,1845.7,1845.3,10.83818583]
[1746607606853,5.41843529,1845.6,1845.2,5.47926894]
[1746607607180,2.26788746,1845.3,1845.0,5.41985283]
[1746607607581,2.26788746,1845.1,1844.8,5.48044034]
[1746607607796,2.26788746,1845.1,1844.8,5.42044034]
[1746607607976,2.26788746,1845.1,1844.8,5.47464126]
[1746607608639,2.26788746,1845.1,1844.8,10.89508013]
[1746607608845,0.753,1845.2,1844.9,5.42031586]
[1746607609141,0.753,1845.2,1844.8,5.42042702]
[1746607609341,0.753,1845.2,1844.8,5.47462793]
[1746607609594,6.17259373,1845.2,1844.8,10.89506789]
[1746607610197,6.17259373,1845.2,1844.8,10.89507813]
[1746607610398,6.17259373,1845.2,1844.9,5.42034712]
[1746607610595,6.17259373,1845.2,1844.6,5.62]
[1746607610596,0.7917,1844.4,1843.9,4.73567156]
[1746607610781,9.76360537,1844.2,1844.1,2.63687325]
[1746607610975,13.56148461,1844.2,1844.1,1.78864557]
[1746607611348,10.56148461,1844.2,1844.1,1.78864557]
[1746607611548,6.21360537,1844.2,1844.1,1.78864557]
[1746607611776,6.21360537,1844.2,1844.1,19.78864557]
[1746607612286,6.26780644,1844.2,1844.1,19.78864557]
[1746607612743,6.57131997,1844.2,1844.1,19.78864557]
[1746607613167,7.07718167,1844.2,1844.1,19.78864557]
[1746607613371,9.34506913,1844.2,1844.1,19.78864557]
[1746607613561,10.82178718,1844.2,1844.1,19.78864557]
[1746607617700,11.1847434,1844.2,1844.1,18.0]
[1746607620496,3.49441998,1844.2,1843.9,5.42314438]
[1746607620674,8.9710337,1844.2,1843.8,0.81653228]
[1746607620872,2.26788746,1844.0,1843.8,6.24001257]
[1746607621171,2.26788746,1844.0,1843.8,0.81653228]
[1746607621374,2.26788746,1844.0,1843.8,6.18586256]
[1746607621709,2.26788746,1844.0,1843.8,6.24009191]
[1746607622066,2.26788746,1844.0,1843.8,0.81652935]
[1746607622265,2.26788746,1844.0,1843.8,6.24010422]
[1746607623022,7.69089047,1844.0,1843.8,0.7623]
[1746607623180,2.32208853,1844.0,1843.7,5.4236949]
[1746607623478,2.26788746,1843.8,1843.7,5.4236949]
[1746607624430,2.26788746,1843.8,1843.6,6.22802112]
[1746607624713,2.26788746,1843.8,1843.6,11.65201975]
[1746607625295,2.26788746,1843.8,1843.7,5.4238759]
[1746607628077,2.26788746,1844.0,1843.9,5.42328759]
[1746607628401,2.26788746,1844.0,1843.9,23.42328759]
[1746607629798,2.26788746,1844.0,1843.9,18.0]
[1746607630318,2.26788746,1844.0,1843.9,23.42328759]
[1746607631127,2.26788746,1844.0,1843.9,5.42328759]
[1746607632401,2.26788746,1844.0,1843.8,5.42337146]
[1746607632706,8.14290662,1844.2,1843.8,5.42337146]
[1746607633224,0.5039363,1844.1,1843.8,5.42337146]
[1746607633708,8.14290662,1844.2,1843.8,5.42337146]
[1746607634411,0.80724446,1844.1,1843.8,5.42337146]
[1746607635016,0.50467552,1844.0,1843.8,5.42337146]
[1746607635415,0.50467552,1844.0,1843.7,5.4237153]
[1746607635604,0.50467552,1844.0,1843.8,5.42357081]
[1746607635805,0.50467552,1843.9,1843.8,5.42357081]
[1746607636098,0.50467552,1843.9,1843.8,6.26849851]
[1746607636500,2.77256298,1844.3,1844.0,5.42273764]
[1746607636805,2.77256298,1844.3,1844.1,5.42263878]
[1746607637010,0.80808106,1844.2,1844.1,5.42263878]
[1746607637211,0.80808106,1844.2,1844.0,5.47696087]
[1746607637603,0.80808106,1844.1,1844.0,5.47696087]
[1746607637916,0.30340554,1844.1,1844.0,5.47696087]
[1746607638113,0.80961226,1844.1,1844.0,5.47696087]
[1746607638319,0.50620672,1844.1,1844.0,5.47696087]
[1746607639416,0.80961226,1844.1,1844.0,5.47696087]
[1746607643424,0.80961226,1844.1,1844.0,9.12126963]
[1746607645444,0.80961226,1844.1,1844.0,6.23126087]
[1746607660366,0.80961226,1844.1,1844.0,24.23126087]
[1746607660571,1.60871226,1844.1,1844.0,23.42273764]
[1746607664551,0.80961226,1844.1,1844.0,23.42273764]
[1746607666861,0.80961226,1844.1,1844.0,5.42273764]
[1746607667367,0.80961226,1844.1,1844.0,5.47696009]
[1746607669275,0.80961226,1844.1,1844.0,6.64306877]
[1746607671579,0.80961226,1844.1,1844.0,6.58884632]
[1746607674286,0.80961226,1844.1,1844.0,24.58884632]
[1746607676893,0.80961226,1844.1,1844.0,24.53884632]
[1746607678383,0.80961226,1844.1,1844.0,25.32404632]
[1746607678580,0.50620672,1844.1,1844.0,27.59193378]
[1746607678785,0.50620672,1844.1,1844.0,25.32404632]
[1746607678992,0.8092,1844.7,1844.4,5.4217173]
[1746607679194,2.20108085,1844.7,1844.4,10.84332789]
[1746607679518,3.07708746,1844.7,1844.4,5.42161059]
[1746607679718,0.50789853,1844.6,1844.4,5.42161059]
[1746607679920,0.81263768,1844.6,1844.4,5.42161059]
[1746607680218,0.50789853,1844.5,1844.4,5.42161059]
[1746607680690,0.81263768,1844.5,1844.4,5.42161059]
[1746607681517,0.81263768,1844.5,1844.4,23.42161059]
[1746607683629,0.81263768,1844.5,1844.4,5.42161059]
[1746607685949,0.81263768,1844.5,1844.4,5.4758211]
[1746607686647,0.81263768,1844.5,1844.4,6.6460878]
[1746607688616,0.81263768,1844.5,1844.4,7.41587729]
[1746607688816,0.50789853,1844.5,1844.4,9.73796772]
[1746607689011,0.50789853,1844.8,1844.7,5.42093565]
[1746607689217,0.50789853,1844.8,1844.7,10.98293565]
[1746607689743,0.81207157,1844.8,1844.7,10.98293565]
[1746607691548,0.81207157,1844.8,1844.7,28.98293565]
[1746607693452,1.58987157,1844.8,1844.7,28.98293565]
[1746607700533,1.589821,1844.8,1844.7,28.98293565]
[1746607702951,1.28569853,1844.8,1844.7,28.98293565]
[1746607703158,1.5898758,1844.8,1844.7,28.98293565]
[1746607706767,0.8120758,1844.8,1844.7,28.98293565]
[1746607707967,0.7620758,1844.8,1844.7,30.38505924]
[1746607709150,0.7620758,1844.8,1844.7,24.82305924]
[1746607710869,0.7620758,1844.8,1844.7,25.59815924]
[1746607713670,0.7620758,1844.8,1844.7,24.82305924]
[1746607717100,0.7620758,1844.8,1844.7,25.57355924]
[1746607718772,0.7620758,1844.8,1844.7,28.57355924]
[1746607719260,0.45789853,1844.8,1844.7,28.57355924]
[1746607719462,0.8244,1845.3,1845.2,5.41946672]
[1746607720115,1.33218958,1845.3,1845.2,5.41946672]
[1746607720519,1.63680209,1845.3,1845.2,5.41946672]
[1746607720879,1.63680209,1845.3,1845.1,5.41974211]
[1746607721294,0.30461251,1845.2,1845.1,5.41974211]
[1746607721576,0.30461251,1845.2,1845.0,10.83973753]
[1746607721912,0.30461251,1845.2,1845.1,18.0]
[1746607722213,2.57249997,1845.2,1845.1,18.0]
[1746607722409,9.57760533,1845.2,1845.1,18.0]
[1746607722882,9.6318064,1845.2,1845.1,18.0]
[1746607723796,9.57760533,1845.2,1845.1,18.0]
[1746607724369,4.15813861,1845.2,1845.1,18.0]
[1746607724807,9.57760533,1845.2,1845.1,18.0]
[1746607725521,9.57760533,1845.2,1844.8,5.42042603]
[1746607726022,0.50778958,1845.1,1844.8,5.42042603]
[1746607726220,0.50778958,1845.1,1844.9,5.42029581]
[1746607726380,0.81240209,1845.1,1844.9,5.42029581]
[1746607726722,0.50778958,1845.0,1844.9,5.42029581]
[1746607727117,0.50778958,1845.0,1844.8,5.42043592]
[1746607727479,0.30461251,1844.9,1844.8,5.42043592]
[1746607727878,0.81240209,1844.9,1844.8,5.42043592]
[1746607728112,1.60920209,1844.9,1844.8,5.42043592]
[1746607728495,1.60920209,1844.9,1844.5,5.42136658]
[1746607728496,7.08395779,1844.9,1844.5,5.42136658]
[1746607728698,7.08395779,1844.9,1844.5,5.47556294]
[1746607728699,7.02975672,1844.9,1844.5,5.47556294]
[1746607729007,0.30461251,1844.8,1844.6,5.42117198]
[1746607729220,0.50778958,1844.7,1844.6,5.42117198]
[1746607729725,0.81240209,1844.7,1844.6,5.42117198]
[1746607731434,0.81240209,1844.7,1844.6,23.42117198]
[1746607734535,1.61370209,1844.7,1844.5,5.42132418]
[1746607734746,0.50778958,1844.6,1844.5,5.42132418]
[1746607735099,0.81240209,1844.6,1844.5,5.42132418]
[1746607735299,0.81240209,1844.6,1844.5,6.51104308]
[1746607735798,0.81240209,1844.6,1844.5,7.28274308]
[1746607736002,0.81240209,1844.6,1844.5,7.3369535]
[1746607737626,0.81240209,1844.6,1844.5,6.51104308]
[1746607738504,0.81240209,1844.6,1844.5,23.42132418]
[1746607739323,0.81240209,1844.6,1844.5,18.0]
[1746607739529,1.58640209,1844.6,1844.5,23.42152344]
[1746607741532,1.58640209,1844.6,1844.5,18.0]
[1746607744549,3.85428955,1844.6,1844.5,18.0]
[1746607744768,10.21197005,1844.6,1844.5,18.0]
[1746607745154,10.26617112,1844.6,1844.5,18.0]
[1746607745959,13.26617112,1844.6,1844.5,18.0]
[1746607746161,18.76497005,1844.6,1844.5,18.0]
[1746607746744,5.42218998,1844.3,1843.9,10.84617031]
[1746607747070,1.05461251,1844.2,1843.9,6.58294683]
[1746607747248,1.05461251,1844.2,1843.9,6.58293505]
[1746607747456,0.50778958,1844.1,1844.0,5.42299106]
[1746607747782,0.50778958,1844.1,1843.9,6.58293505]
[1746607747962,0.81240209,1844.0,1843.9,6.63715837]
[1746607749044,0.50778958,1844.0,1843.9,6.63715837]
[1746607750987,0.40607779,1844.3,1844.1,5.42263404]
[1746607751366,0.50645835,1844.2,1844.0,5.42283158]
[1746607751566,0.81030767,1844.2,1844.0,5.42283158]
[1746607751769,0.50645835,1844.1,1844.0,5.42283158]
[1746607752880,0.81030767,1844.1,1844.0,5.42283158]
[1746607753381,0.81030767,1844.1,1844.0,23.42283158]
[1746607753682,0.81030767,1844.1,1844.0,18.0]
[1746607754180,0.81030767,1844.1,1843.9,5.42309695]
[1746607754745,0.81030767,1844.0,1843.7,10.97672432]
[1746607754951,7.03662696,1844.0,1843.7,10.97677884]
[1746607755151,7.03662696,1844.0,1843.7,5.553]
[1746607755152,8.34218947,1844.0,1843.7,5.553]
[1746607755478,5.42371016,1843.8,1843.4,11.7546011]
[1746607755678,0.8312,1843.7,1843.5,5.42444401]
[1746607755909,1.33765835,1843.7,1843.5,5.42444401]
[1746607756047,1.33765835,1843.7,1843.5,10.84872699]
[1746607756248,0.81030767,1843.6,1843.5,5.42428298]
[1746607758266,0.81030767,1843.6,1843.5,23.42428298]
[1746607759162,0.50645835,1843.6,1843.5,23.42428298]
[1746607760203,0.88540107,1843.9,1843.6,5.4241701]
[1746607760380,0.88540107,1843.9,1843.7,5.42377399]
[1746607760577,0.88540107,1843.9,1843.6,5.4241701]
[1746607760899,0.80934089,1843.8,1843.6,10.84816008]
[1746607761200,0.50583888,1843.7,1843.6,5.42398998]
[1746607761568,0.80934089,1843.7,1843.6,5.42398998]
[1746607762362,0.80934089,1843.7,1843.6,23.42398998]
[1746607762799,1.63484089,1843.7,1843.6,18.0]
[1746607763001,7.05871679,1843.7,1843.6,18.0]
[1746607763169,2.62170238,1843.7,1843.6,18.0]
[1746607763577,8.04557828,1843.7,1843.6,18.0]
[1746607765496,11.04557828,1843.7,1843.6,18.0]
[1746607765701,10.99137721,1843.7,1843.6,18.0]
[1746607768222,6.2291701,1843.6,1843.2,5.42515708]
[1746607768535,6.2291701,1843.6,1843.2,10.85029221]
[1746607768536,0.67711808,1843.5,1843.2,10.85029221]
[1746607768716,0.05420107,1843.5,1843.3,5.4250224]
[1746607768893,0.805,1843.6,1843.4,5.42475859]
[1746607768894,0.85920107,1843.6,1843.4,5.42475859]
[1746607769296,0.50583888,1843.5,1843.4,5.42475859]
[1746607769482,0.80934089,1843.5,1843.4,5.42475859]
[1746607770233,0.80934089,1843.5,1843.3,5.42486834]
[1746607770440,0.50583888,1843.4,1843.3,5.42486834]
[1746607771348,0.80934089,1843.4,1843.3,5.42486834]
[1746607777147,0.80934089,1843.4,1843.3,6.50987716]
[1746607777346,0.80934089,1843.4,1843.3,7.35891964]
[1746607778142,0.50583888,1843.4,1843.3,7.35891964]
[1746607778563,0.50583888,1843.4,1843.3,9.6268071]
[1746607778766,5.42312499,1844.0,1843.6,5.42396324]
[1746607778932,0.5423125,1843.9,1843.6,5.42396324]
[1746607779131,0.80983811,1843.8,1843.7,5.42370191]
[1746607779446,0.80983811,1843.8,1843.6,10.84792236]
[1746607779645,0.80983811,1843.8,1843.6,10.84793533]
[1746607779839,0.30399923,1843.7,1843.6,5.42395912]
[1746607780250,0.80983811,1843.7,1843.6,5.42395912]
[1746607780922,0.80983811,1843.7,1843.6,6.18855912]
[1746607781127,0.80983811,1843.7,1843.6,7.35527255]
[1746607782046,0.81114416,1843.7,1843.6,7.35527255]
[1746607783633,0.81114416,1843.7,1843.6,6.59067255]
[1746607785955,0.81114416,1843.7,1843.6,7.36507255]
[1746607786131,0.81114416,1843.7,1843.6,12.90807255]
[1746607792637,0.81114416,1843.7,1843.6,12.13367255]
[1746607792857,0.81114416,1843.7,1843.6,10.96695912]
[1746607793356,0.81114416,1843.7,1843.6,5.4241701]
[1746607793516,0.81114416,1843.7,1843.6,18.0]
[1746607794757,0.81114416,1843.7,1843.6,23.4241701]
[1746607795057,0.81114416,1843.7,1843.6,18.0]
[1746607796054,9.36460859,1843.7,1843.6,18.0]
[1746607796239,10.84344143,1843.7,1843.6,18.0]
[1746607796445,5.41956553,1843.7,1843.6,18.0]
[1746607796653,10.84344143,1843.7,1843.6,18.0]
[1746607799134,8.57555397,1843.7,1843.6,18.0]
[1746607799770,6.22058465,1843.6,1843.2,10.85031153]
[1746607799964,0.561346,1843.5,1843.2,10.85031153]
[1746607800140,0.561346,1843.5,1843.2,5.42513433]
[1746607800467,0.50714493,1843.4,1843.2,5.42513433]
[1746607800663,1.30344493,1843.4,1843.2,5.42513433]
[1746607800829,0.81114416,1843.3,1843.2,5.42513433]
[1746607804428,0.81114416,1843.3,1843.1,5.42550759]
[1746607804628,0.81114416,1843.2,1843.1,5.42550759]
[1746607807463,0.81114416,1843.2,1843.0,10.9687606]
[1746607807769,3.87833162,1843.2,1842.9,5.42604258]
[1746607807964,3.87833162,1843.2,1842.8,0.05425766]
[1746607807965,2.26788746,1843.0,1842.8,0.05425766]
[1746607808165,0.7993,1842.9,1842.8,5.42647122]
[1746607808367,0.50714493,1842.9,1842.8,5.48072902]
[1746607808538,0.50714493,1842.9,1842.8,6.29912902]
[1746607808862,0.81114416,1842.9,1842.8,6.29912902]
[1746607809067,0.81114416,1842.9,1842.8,5.42647122]
[1746607810461,0.81114416,1842.9,1842.8,23.42647122]
[1746607816289,0.81114416,1842.9,1842.8,18.0]
[1746607816290,7.03787455,1842.9,1842.8,18.0]
[1746607816436,7.03787455,1842.9,1841.7,0.28355183]
[1746607816437,0.8005,1842.4,1841.7,0.8302]
[1746607816636,0.8005,1842.4,1842.3,5.42799761]
[1746607816836,1.30764493,1842.4,1842.2,5.42806838]
[1746607817452,0.50714493,1842.3,1842.2,5.42806838]
[1746607819682,0.810506,1842.3,1842.2,23.42806838]
[1746607820752,0.810506,1842.3,1842.2,23.42829225]
[1746607821275,0.810506,1842.3,1842.2,18.0]
[1746607821477,0.810506,1842.3,1842.2,23.42829225]
[1746607822749,0.50714493,1842.3,1842.2,23.42829225]
[1746607822947,0.88700107,1842.6,1842.3,5.42793548]
[1746607823148,2.04519533,1842.6,1842.3,5.42793548]
[1746607823347,0.50547763,1842.5,1842.3,5.42793548]
[1746607823548,0.30333374,1842.4,1842.3,5.42793548]
[1746607824080,0.80881137,1842.4,1842.3,5.42793548]
[1746607824585,1.55951137,1842.4,1842.2,5.42823008]
[1746607824770,0.50547763,1842.3,1842.2,5.42823008]
[1746607825084,0.80881137,1842.3,1842.2,5.42823008]
[1746607826182,0.80881137,1842.3,1842.2,14.02941754]
[1746607826380,0.30333374,1842.3,1842.2,14.02941754]
[1746607826747,0.30333374,1842.7,1842.6,5.42711386]
[1746607826954,0.80902413,1842.7,1842.6,5.42711386]
[1746607827354,0.80902413,1842.7,1842.6,5.48138159]
[1746607827784,0.30333374,1842.7,1842.6,8.86519799]
[1746607827971,0.86630107,1843.1,1842.9,5.42613579]
[1746607828167,0.8121,1843.1,1843.0,5.42593597]
[1746607828355,0.8121,1843.1,1842.9,5.42603175]
[1746607828556,0.8121,1843.1,1842.8,5.42632366]
[1746607828758,0.8121,1843.1,1842.8,5.42643181]
[1746607828964,1.66806365,1843.1,1842.8,10.85273137]
[1746607829180,1.66806365,1843.1,1842.9,5.42621975]
[1746607829664,0.8121,1843.1,1843.0,5.42593597]
[1746607829889,0.8121,1843.1,1842.9,5.42605325]
[1746607829890,0.8121,1843.1,1842.9,5.42604777]
[1746607830252,0.8121,1843.1,1842.9,10.85208717]
[1746607830451,0.8121,1843.1,1842.9,5.4260394]
[1746607830683,0.05420107,1843.2,1843.0,5.42593597]
[1746607830879,0.30354466,1843.0,1842.9,5.4260394]
[1746607831186,0.80950778,1843.0,1842.9,5.4260394]
[1746607831987,0.80950778,1843.0,1842.9,5.69200477]
[1746607837670,1.57090778,1843.0,1842.9,0.26596537]
[1746607837870,4.59266355,1843.0,1842.7,5.42672994]
[1746607838064,4.59266355,1843.0,1842.9,0.27103137]
[1746607838267,4.28911889,1843.0,1842.7,5.42672994]
[1746607838599,9.71510768,1843.0,1842.8,0.2716353]
[1746607838797,5.42623039,1842.9,1842.8,0.2716353]
[1746607838959,7.44632732,1842.9,1842.8,0.2716353]
[1746607839158,2.84339693,1842.9,1842.6,5.42709757]
[1746607839359,1.32926312,1842.9,1842.8,0.25098538]
[1746607839558,1.32926312,1842.9,1842.7,5.6783961]
[1746607839798,1.32926312,1842.9,1842.8,0.25098538]
[1746607840811,1.63341394,1842.9,1842.8,0.25098538]
[1746607841110,0.81011394,1842.9,1842.8,5.67751023]
[1746607842109,0.81011394,1842.9,1842.8,0.25098538]
[1746607843310,0.81012024,1842.9,1842.8,5.67751023]
[1746607843523,0.81012024,1842.9,1842.8,0.25098538]
[1746607846383,0.50596312,1842.9,1842.8,0.25098538]
[1746607847573,0.50596312,1842.9,1842.7,5.42667416]
[1746607847771,0.50596312,1842.9,1842.8,0.25098538]
[1746607847973,1.10457488,1842.9,1842.6,10.85389876]
[1746607848281,0.50596312,1842.9,1842.7,0.25158937]
[1746607848497,0.50596312,1842.8,1842.7,5.42681074]
[1746607848871,0.50596312,1842.8,1842.6,5.42694465]
[1746607849509,0.50596312,1842.7,1842.6,5.42694465]
[1746607849702,0.50596312,1842.7,1842.5,5.42725417]
[1746607849999,0.50596312,1842.7,1842.6,5.42711386]
[1746607850207,0.50596312,1842.7,1842.5,5.4271992]
[1746607850373,0.50596312,1842.6,1842.5,5.4271992]
[1746607851830,0.50596312,1842.6,1842.4,5.42753501]
[1746607852124,0.50596312,1842.6,1842.5,5.42740841]
[1746607853548,0.50596312,1842.6,1842.4,10.85505145]
[1746607854030,0.50596312,1842.6,1842.4,5.42751644]
[1746607854332,5.42692344,1842.7,1842.4,5.42750541]
[1746607854509,0.54269234,1842.6,1842.5,0.25279755]
[1746607855428,3.7936,1843.0,1842.6,5.42698886]
[1746607855626,3.84780107,1843.0,1842.7,5.42675028]
[1746607855826,3.84780107,1843.0,1842.7,5.67920392]
[1746607856129,0.84780107,1843.0,1842.7,5.67908779]
[1746607856345,0.84780107,1843.0,1842.8,5.42648227]
[1746607856524,0.7936,1843.0,1842.8,5.67833192]
[1746607856900,9.11478388,1843.0,1842.8,0.25184965]
[1746607857111,0.05420107,1842.9,1842.6,5.42693998]
[1746607858849,0.05420107,1842.9,1842.6,5.42693838]
[1746607860340,5.48049265,1842.9,1842.6,5.42693838]
[1746607860534,5.48049265,1842.9,1842.5,5.42723682]
[1746607860535,0.54804927,1842.8,1842.5,10.85442508]
[1746607860838,0.54804927,1842.8,1842.6,5.42705741]
[1746607861542,0.54804927,1842.8,1842.5,5.42718826]
[1746607862002,0.54804927,1842.8,1842.5,10.85437664]
[1746607862204,0.8086,1842.7,1842.5,5.42718826]
[1746607862637,0.8086,1842.7,1842.5,10.8544292]
[1746607863137,0.8086,1842.7,1842.6,5.42711386]
[1746607863837,0.8086,1842.7,1842.5,5.42727657]
[1746607866128,7.6952007,1842.6,1842.2,5.42813771]
[1746607866315,0.05420107,1842.6,1842.5,5.42740841]
[1746607866648,0.82590107,1842.9,1842.6,5.42692573]
[1746607867343,0.8,1842.8,1842.6,5.42692573]
[1746607867544,0.82590107,1842.9,1842.6,5.42691051]
[1746607867747,1.51383499,1842.9,1842.6,5.42691051]
[1746607868037,1.45963392,1842.9,1842.6,5.42691051]
[1746607868440,1.45963392,1842.9,1842.6,10.85381873]
[1746607868619,1.45963392,1842.9,1842.6,10.85381644]
[1746607868809,1.45963392,1842.9,1842.6,5.42690822]
[1746607869649,1.45963392,1842.9,1842.7,0.25194147]
[1746607869981,1.45963392,1842.9,1842.6,5.42690822]
[1746607870414,1.45963392,1842.9,1842.7,0.25194147]
[1746607870742,1.45963392,1842.9,1842.4,6.20327124]
[1746607870945,0.7717,1842.9,1842.8,0.25133748]
[1746607871141,0.7717,1842.9,1842.7,5.42676424]
[1746607871343,0.7717,1842.9,1842.8,0.25133748]
[1746607871711,0.7717,1842.9,1842.6,5.42682644]
[1746607871911,0.7717,1842.9,1842.8,0.25124146]
[1746607872107,1.68641371,1842.9,1842.6,5.42682644]
[1746607872312,1.68641371,1842.9,1842.8,0.25124146]
[1746607872613,1.68641371,1842.9,1842.6,5.42682644]
[1746607872834,0.82590107,1842.9,1842.8,0.25124146]
[1746607873034,6.25228706,1842.9,1842.8,0.25124146]
[1746607873206,6.25228706,1842.9,1842.5,10.85444799]
[1746607873551,6.25228706,1842.9,1842.6,0.25244951]
[1746607874154,6.25228706,1842.9,1842.6,5.67954408]
[1746607874356,0.8,1842.8,1842.6,5.67954408]
[1746607875559,6.25214476,1842.9,1842.6,5.67954408]
[1746607875761,7.70948283,1842.9,1842.6,5.67954408]
[1746607877359,2.28323914,1842.9,1842.6,5.67954408]
[1746607877560,0.62734611,1843.0,1842.7,5.42681561]
[1746607877864,6.10750843,1843.0,1842.7,5.67866107]
[1746607882152,8.37539589,1843.0,1842.7,5.67866107]
[1746607882457,0.8,1842.9,1842.7,5.67866107]
[1746607886442,8.37540031,1843.0,1842.7,5.67866107]
[1746607887063,2.94943464,1843.0,1842.8,5.42637109]
[1746607887263,0.82680107,1843.1,1843.0,5.42593597]
[1746607887434,1.26144447,1843.3,1843.0,5.6754081]
[1746607887634,1.26144447,1843.3,1843.0,0.24968159]
[1746607887855,0.4113434,1843.3,1843.1,5.42554126]
[1746607888181,18.28854884,1843.4,1843.2,0.24818604]
[1746607888383,20.95985119,1843.4,1843.2,0.24818604]
[1746607888681,5.47925396,1843.3,1843.2,0.24818604]
[1746607888875,6.27925396,1843.3,1843.0,5.42573987]
[1746607889079,6.27925396,1843.3,1843.1,0.24878977]
[1746607889374,7.69323468,1843.2,1843.1,0.24878977]
[1746607889567,9.09048354,1843.2,1843.1,0.24878977]
[1746607889765,9.14468461,1843.2,1842.9,5.42610016]
[1746607889972,9.14468461,1843.2,1843.1,0.24878977]
[1746607890168,9.14468461,1843.2,1842.9,5.42610016]
[1746607890368,9.90528461,1843.2,1843.1,0.24878977]
[1746607890540,9.90528461,1843.2,1843.0,0.24939356]
[1746607890746,6.41617004,1843.1,1842.7,10.96263935]
[1746607890949,2.26788746,1843.0,1842.7,10.96263935]
[1746607891256,0.7606,1842.9,1842.7,5.42663935]
[1746607892157,0.7606,1842.9,1842.6,5.42691305]
[1746607893083,0.7606,1842.9,1842.7,5.42673248]
[1746607893273,2.73066976,1843.0,1842.7,5.42663239]
[1746607895021,0.05420107,1843.0,1842.8,5.42637458]
[1746607895282,0.05420107,1843.2,1843.0,5.42592928]
[1746607895778,0.05420107,1843.2,1842.9,10.85231311]
[1746607895986,0.05420107,1843.2,1842.9,5.42608272]
[1746607896187,5.47956058,1843.2,1842.9,5.42608272]
[1746607896404,8.913983,1843.2,1842.9,5.42608272]
[1746607896561,9.32479565,1843.2,1842.9,5.42608272]
[1746607897495,3.89943614,1843.2,1842.9,5.42608272]
[1746607897902,2.73290118,1843.2,1842.9,5.42608272]
[1746607898099,0.41081265,1843.2,1843.0,5.42578008]
[1746607898307,6.23985919,1843.3,1843.0,5.42578008]
[1746607899504,6.23985919,1843.3,1843.1,0.24846976]
[1746607900069,6.23985919,1843.3,1842.9,10.85207438]
[1746607900262,2.26788746,1843.2,1843.0,0.24907356]
[1746607900700,3.06788746,1843.2,1843.0,0.24907356]
[1746607901001,8.904297,1843.2,1843.0,0.24907356]
[1746607901392,8.95849807,1843.2,1843.0,0.24907356]
[1746607901599,0.7714,1843.1,1843.0,0.24907356]
[1746607901914,7.71262606,1843.1,1842.8,5.42633987]
[1746607902210,2.32208853,1843.0,1842.7,5.42665885]
[1746607902415,7.74806793,1843.0,1842.7,5.42665885]
[1746607902708,7.74806793,1843.0,1842.6,5.42700233]
[1746607902900,7.74806793,1843.0,1842.5,6.21404782]
[1746607903200,0.82,1842.9,1842.6,5.42700807]
[1746607904217,0.82,1842.9,1842.7,18.0]
[1746607904910,2.32208853,1843.0,1842.7,28.85341537]
[1746607905118,7.79667293,1843.1,1842.7,23.4266353]
[1746607905303,2.37085241,1843.1,1842.8,5.42652295]